bitfinex-derivatives/quotes_SOLF0:USTF0_20241017
["timestamp","ask_amount","ask_price","bid_price","bid_amount"]
[1729154966858,3.2653,153.17,153.13,3.26035655]
[1729154967060,4.78,153.16,153.13,3.26035655]
[1729154967363,4.78,153.16,153.14,10.05]
[1729154968553,8.0453,153.16,153.14,10.05]
[1729154968861,4.78,153.16,153.14,10.05]
[1729154971465,3.2653,153.17,153.14,10.05]
[1729154974169,1.01558255,153.16,153.14,10.05]
[1729154974467,1.01558255,153.16,153.15,10.05]
[1729154974665,1.01558255,153.17,153.15,10.05]
[1729154974866,8.005,153.18,153.15,10.05]
[1729154975067,8.0049,153.18,153.15,10.05]
[1729154975363,8.0049,153.18,153.15,13.32933469]
[1729154975970,3.2649,153.18,153.15,13.32933469]
[1729154976459,4.74,153.18,153.15,13.32933469]
[1729154977562,8.0049,153.18,153.15,13.32933469]
[1729154979066,4.74,153.18,153.15,13.32933469]
[1729154979570,4.74,153.18,153.16,10.05]
[1729154982363,4.6617,153.2,153.16,10.05]
[1729154982565,3.2644,153.21,153.18,10.05]
[1729154982770,4.74,153.2,153.18,10.05]
[1729154982973,3.2644,153.21,153.18,10.05]
[1729154982974,8.0044,153.21,153.18,10.05]
[1729154983975,8.0044,153.21,153.16,3.2652]
[1729154984180,8.0044,153.21,153.18,10.05]
[1729154985475,3.2646,153.2,153.18,10.05]
[1729154986065,3.2646,153.2,153.15,6.54483469]
[1729154986267,3.2646,153.2,153.16,10.05]
[1729154986668,3.2646,153.2,153.15,6.54483469]
[1729154986669,3.2646,153.2,153.17,10.05]
[1729154987874,3.2647,153.19,153.15,6.54483469]
[1729154988074,3.2647,153.19,153.16,10.05]
[1729154989980,3.2648,153.19,153.15,13.32933469]
[1729154990188,10.05,153.19,153.15,13.32933469]
[1729154990380,10.05,153.19,153.14,10.05]
[1729154990879,3.2651,153.18,153.14,13.32912048]
[1729154992271,3.265,153.18,153.14,13.32912048]
[1729154993980,3.265,153.18,153.14,3.27912048]
[1729154994181,3.265,153.18,153.15,10.05]
[1729154995578,3.2654,153.16,153.12,3.2662]
[1729154995789,10.05,153.16,153.12,10.05]
[1729154995984,10.05,153.15,153.09,1.4496]
[1729154996174,4.74,153.17,153.07,405.85402]
[1729154996175,3.2664,153.11,153.07,405.85402]
[1729154996380,10.05,153.12,153.07,402.58692]
[1729154997382,3.2665,153.11,153.07,392.53692]
[1729154997574,10.05,153.12,153.07,402.58692]
[1729154997774,4.74,153.13,153.08,10.05]
[1729154997775,14.79,153.13,153.08,10.05]
[1729154998180,14.79,153.13,153.07,392.53692]
[1729154998374,3.2663,153.12,153.08,10.05]
[1729154998782,13.3163,153.12,153.08,10.05]
[1729155000588,10.05,153.12,153.07,395.80402]
[1729155000885,3.2665,153.11,153.07,402.58692]
[1729155002698,3.2665,153.11,153.07,405.85412]
[1729155002880,13.3162,153.12,153.07,402.58692]
[1729155003387,13.3162,153.12,153.07,405.85412]
[1729155003885,13.3162,153.12,153.08,10.05]
[1729155003886,3.2662,153.12,153.08,10.05]
[1729155004089,8.0061,153.13,153.08,13.317]
[1729155004688,4.74,153.13,153.08,13.317]
[1729155004891,3.2662,153.12,153.08,13.317]
[1729155006394,13.3162,153.12,153.08,13.317]
[1729155007393,3.2664,153.11,153.07,392.53692]
[1729155007587,10.05,153.12,153.07,402.58692]
[1729155008095,4.74,153.13,153.1,13.3165]
[1729155008286,4.68,153.13,153.11,3.20392762]
[1729155010490,4.68,153.13,153.1,10.05]
[1729155010694,14.73,153.13,153.08,10.05]
[1729155010995,10.05,153.12,153.07,392.53692]
[1729155011186,10.05,153.1,153.07,392.53692]
[1729155011888,14.73,153.09,153.07,392.53692]
[1729155012089,4.68,153.08,153.07,392.53692]
[1729155012284,7.947,153.08,153.07,392.53692]
[1729155012494,17.997,153.08,153.07,392.53692]
[1729155015686,4.68,153.08,153.07,392.53692]
[1729155015888,4.68,153.09,153.07,402.58692]
[1729155016293,4.68,153.09,153.08,3.23157631]
[1729155016791,4.68,153.09,153.08,13.28157631]
[1729155016996,4.68,153.09,153.08,3.23157631]
[1729155017196,4.68,153.09,153.07,402.58692]
[1729155018497,4.68,153.09,153.07,392.53692]
[1729155020200,4.68,153.09,153.08,3.21742137]
[1729155020899,4.68,153.09,153.07,392.53692]
[1729155021200,13.3164,153.11,153.07,392.53692]
[1729155021395,4.68,153.1,153.07,402.58692]
[1729155022303,4.68,153.1,153.07,405.85402]
[1729155022603,4.68,153.1,153.08,13.36058048]
[1729155023704,4.68,153.1,153.08,3.31058048]
[1729155025504,2.7842,153.17,153.08,3.31058048]
[1729155025703,10.05,153.13,153.09,10.05]
[1729155026006,4.68,153.12,153.09,10.05]
[1729155026206,4.68,153.12,153.08,16.62748048]
[1729155026603,7.9463,153.12,153.08,16.62748048]
[1729155028006,4.68,153.12,153.08,16.62748048]
[1729155030515,7.9462,153.12,153.08,6.57748048]
[1729155031708,4.68,153.12,153.08,3.31058048]
[1729155031905,2.7842,153.17,153.1,10.05]
[1729155031906,10.05,153.16,153.1,10.05]
[1729155032207,4.66,153.15,153.11,10.05]
[1729155032712,7.9257,153.15,153.11,10.05]
[1729155034407,7.9257,153.15,153.1,16.56804688]
[1729155035009,17.9757,153.15,153.1,16.56804688]
[1729155037008,2.7842,153.17,153.11,10.05]
[1729155037205,4.66,153.14,153.11,10.05]
[1729155038006,10.05,153.12,153.08,2.6793]
[1729155038211,10.05,153.1,153.07,392.53692]
[1729155039511,10.05,153.1,153.07,395.80402]
[1729155040307,14.71,153.1,153.07,395.80402]
[1729155047108,4.66,153.1,153.07,395.80402]
[1729155048218,4.66,153.1,153.08,3.32626475]
[1729155048415,4.66,153.1,153.07,395.80402]
[1729155054208,4.66,153.1,153.07,405.85402]
[1729155054820,4.66,153.1,153.09,13.3168]
[1729155055009,4.66,153.1,153.09,16.64121327]
[1729155055617,4.66,153.1,153.09,3.32441327]
[1729155055919,4.66,153.1,153.08,13.3169]
[1729155056522,13.3162,153.12,153.09,3.21786995]
[1729155057919,10.05,153.12,153.09,3.21786995]
[1729155058221,10.05,153.12,153.08,13.3169]
[1729155058915,10.05,153.12,153.08,16.62039679]
[1729155059718,10.05,153.12,153.08,13.35349679]
[1729155059913,1.3489,153.17,153.11,10.05]
[1729155060224,3.2657,153.15,153.11,10.05]
[1729155060517,10.05,153.16,153.11,10.05]
[1729155060817,13.3154,153.16,153.11,13.31002973]
[1729155061025,13.3154,153.16,153.11,16.57632973]
[1729155061329,13.3154,153.16,153.12,10.05]
[1729155062420,13.3154,153.16,153.12,13.3161]
[1729155064818,3.2654,153.16,153.12,13.3161]
[1729155067026,10.05,153.14,153.11,3.26002973]
[1729155067230,10.05,153.12,153.08,11.4147]
[1729155067727,10.05,153.12,153.1,3.2666]
[1729155067923,3.2659,153.14,153.1,13.3166]
[1729155068231,10.05,153.15,153.1,10.05]
[1729155068428,13.3157,153.15,153.11,13.3163]
[1729155068728,10.05,153.15,153.11,10.05]
[1729155069321,10.05,153.15,153.12,3.2661]
[1729155069521,3.2654,153.16,153.12,13.3161]
[1729155069728,13.3154,153.16,153.12,3.2661]
[1729155072524,4.6783,153.19,153.14,13.3156]
[1729155072834,13.3149,153.19,153.14,13.3156]
[1729155073029,13.3149,153.19,153.14,10.05]
[1729155073233,10.05,153.22,153.17,10.05]
[1729155073931,94.50666788,153.21,153.17,13.315]
[1729155074429,94.50666788,153.21,153.17,10.05]
[1729155075033,94.50666788,153.21,153.16,6.4742703]
[1729155075034,104.55666788,153.21,153.16,6.4742703]
[1729155075728,91.24236788,153.21,153.17,3.265]
[1729155075931,10.05,153.2,153.16,3.2090703]
[1729155076333,10.05,153.2,153.16,6.4742703]
[1729155077435,13.3143,153.21,153.16,16.5242703]
[1729155078735,10.05,153.21,153.16,3.2090703]
[1729155078930,10.05,153.17,153.12,10.05]
[1729155079635,10.05,153.15,153.1,10.05]
[1729155079936,10.05,153.14,153.09,10.05]
[1729155080238,10.05,153.14,153.11,3.2663]
[1729155080739,10.05,153.14,153.1,10.05]
[1729155081833,10.05,153.14,153.11,3.2663]
[1729155082940,3.2662,153.12,153.09,3.2667]
[1729155083439,13.3161,153.13,153.1,3.2666]
[1729155083637,6.5286,153.22,153.11,10.05]
[1729155083939,10.05,153.17,153.12,10.05]
[1729155084137,3.2656,153.15,153.12,10.05]
[1729155087642,3.2656,153.15,153.12,13.3162]
[1729155088845,10.05,153.17,153.12,13.3162]
[1729155089144,3.2654,153.16,153.12,13.3162]
[1729155092148,13.3152,153.17,153.12,13.3162]
[1729155101752,13.3152,153.17,153.12,10.05]
[1729155101953,13.3152,153.17,153.13,3.2659]
[1729155104157,13.3152,153.17,153.12,13.3161]
[1729155108455,10.05,153.16,153.11,3.2662]
[1729155108658,10.05,153.16,153.11,13.3162]
[1729155108960,10.05,153.16,153.11,10.05]
[1729155109164,10.05,153.16,153.12,3.266]
[1729155109165,10.05,153.14,153.12,3.266]
[1729155110060,10.05,153.14,153.1,10.05]
[1729155110259,10.05,153.14,153.11,3.2664]
[1729155111363,13.3158,153.14,153.11,3.2664]
[1729155114567,3.2658,153.14,153.11,3.2664]
[1729155119261,10.05,153.15,153.1,10.05]
[1729155120360,10.05,153.15,153.11,3.2663]
[1729155120570,10.05,153.15,153.1,10.05]
[1729155121463,10.05,153.15,153.12,3.266]
[1729155122156,10.05,153.15,153.1,10.05]
[1729155122360,10.05,153.15,153.13,3.266]
[1729155123764,3.2649,153.18,153.11,10.05]
[1729155123963,10.05,153.16,153.11,10.05]
[1729155124965,10.05,153.16,153.13,3.2659]
[1729155125965,10.05,153.15,153.09,1.4227]
[1729155126173,10.05,153.15,153.1,1.63392219]
[1729155126467,10.05,153.15,153.11,1.63392219]
[1729155126669,10.05,153.15,153.09,11.4727]
[1729155126867,13.3156,153.15,153.11,3.2663]
[1729155128470,13.3156,153.15,153.12,1.63391202]
[1729155128674,13.3156,153.15,153.11,3.2663]
[1729155128871,13.3156,153.15,153.12,1.63391357]
[1729155129172,13.3156,153.15,153.11,3.2663]
[1729155129470,13.3156,153.15,153.12,1.63390578]
[1729155129668,13.3156,153.15,153.11,3.2663]
[1729155129869,13.3156,153.15,153.12,1.63390578]
[1729155130064,13.3156,153.15,153.11,3.2663]
[1729155130275,13.3156,153.15,153.12,1.63390423]
[1729155130471,13.3156,153.15,153.11,3.2663]
[1729155130673,13.3156,153.15,153.12,1.63390423]
[1729155130970,13.3156,153.15,153.11,3.2663]
[1729155131272,13.3156,153.15,153.12,1.63391522]
[1729155131465,13.3156,153.15,153.11,3.2663]
[1729155131868,13.3156,153.15,153.12,1.63390761]
[1729155132167,10.05,153.19,153.14,10.05]
[1729155132772,10.05,153.18,153.14,13.3156]
[1729155133366,10.05,153.18,153.14,3.2656]
[1729155134070,10.05,153.18,153.13,10.05]
[1729155134071,127.73129247,153.21,153.13,10.05]
[1729155134376,10.05,153.17,153.13,10.05]
[1729155135371,10.05,153.17,153.14,3.2657]
[1729155135671,10.05,153.17,153.09,1.4227]
[1729155135871,10.05,153.17,153.12,10.05]
[1729155136071,10.05,153.17,153.13,1.63381437]
[1729155136374,10.05,153.17,153.12,10.05]
[1729155136570,10.05,153.17,153.13,1.63384894]
[1729155136772,13.3152,153.17,153.13,3.2658]
[1729155137067,10.05,153.17,153.12,10.05]
[1729155137274,10.05,153.17,153.14,3.2656]
[1729155138377,10.05,153.17,153.12,10.05]
[1729155138579,10.05,153.17,153.13,4.89974997]
[1729155138877,10.05,153.17,153.13,3.2659]
[1729155139373,3.2649,153.18,153.13,3.2659]
[1729155139581,10.05,153.16,153.13,3.2659]
[1729155140376,3.2656,153.15,153.11,13.3164]
[1729155140583,10.05,153.14,153.12,1.63388869]
[1729155140783,10.05,153.14,153.09,11.4727]
[1729155140980,13.3159,153.14,153.1,4.90036513]
[1729155141281,13.3159,153.14,153.11,1.63396513]
[1729155141582,13.3159,153.14,153.11,3.2664]
[1729155141972,13.3159,153.14,153.12,1.63397602]
[1729155142179,10.05,153.14,153.11,13.3164]
[1729155142382,13.3159,153.14,153.12,1.63397602]
[1729155142582,13.3159,153.14,153.11,10.05]
[1729155142782,13.3159,153.14,153.12,1.63397602]
[1729155143084,13.3158,153.14,153.1,3.2666]
[1729155143283,13.3158,153.14,153.11,1.6340455]
[1729155143478,13.3158,153.14,153.1,3.2666]
[1729155143785,13.3158,153.14,153.11,1.6340455]
[1729155143986,13.3158,153.14,153.1,3.2666]
[1729155144187,13.3158,153.14,153.11,1.63404158]
[1729155144481,13.3158,153.14,153.1,3.2666]
[1729155144680,13.3158,153.14,153.11,1.63405092]
[1729155144981,13.3158,153.14,153.1,3.2666]
[1729155145184,10.05,153.14,153.11,1.63405247]
[1729155145380,13.3158,153.14,153.1,3.2666]
[1729155145581,13.3158,153.14,153.11,1.63405264]
[1729155145783,13.3158,153.14,153.1,3.2666]
[1729155146077,13.3158,153.14,153.11,1.63405264]
[1729155146285,13.3158,153.14,153.1,3.2666]
[1729155146484,13.3158,153.14,153.11,1.63406042]
[1729155146687,13.3158,153.14,153.1,3.2666]
[1729155147181,13.3158,153.14,153.11,1.63406348]
[1729155147379,13.3158,153.14,153.1,3.2666]
[1729155147574,13.3158,153.14,153.11,1.63409296]
[1729155147781,13.3158,153.14,153.1,3.2666]
[1729155148079,13.3158,153.14,153.11,1.63409296]
[1729155148279,13.3158,153.14,153.1,3.2666]
[1729155148481,13.3158,153.14,153.11,1.63406348]
[1729155148679,10.05,153.13,153.1,3.2666]
[1729155148881,10.05,153.13,153.11,1.63406348]
[1729155149082,10.05,153.13,153.1,3.2666]
[1729155149283,10.05,153.13,153.11,1.63406503]
[1729155149482,10.05,153.13,153.1,3.2666]
[1729155149781,10.05,153.13,153.11,1.63406503]
[1729155149977,10.05,153.13,153.1,3.2666]
[1729155150183,10.05,153.13,153.11,1.63406348]
[1729155150382,10.05,153.13,153.1,3.2666]
[1729155150584,3.2658,153.14,153.11,1.63406348]
[1729155150782,3.2658,153.14,153.11,3.2664]
[1729155150982,3.2658,153.14,153.09,10.05]
[1729155151189,3.2658,153.14,153.1,4.90055536]
[1729155151488,3.2658,153.14,153.11,1.63405536]
[1729155151689,3.2658,153.14,153.1,3.2665]
[1729155151891,3.2658,153.14,153.11,1.63406503]
[1729155152079,3.2658,153.14,153.1,3.2665]
[1729155152283,3.2658,153.14,153.11,1.63406348]
[1729155152493,3.2658,153.14,153.1,3.2665]
[1729155152790,3.2658,153.14,153.11,1.63406348]
[1729155153086,3.2658,153.14,153.1,3.2665]
[1729155153285,3.2658,153.14,153.11,1.63406486]
[1729155153488,3.2658,153.14,153.1,3.2665]
[1729155153684,3.2658,153.14,153.11,1.63406486]
[1729155153883,3.2658,153.14,153.1,3.2665]
[1729155154087,3.2658,153.14,153.11,1.63406332]
[1729155154289,3.2658,153.14,153.1,3.2665]
[1729155154491,3.2658,153.14,153.11,1.63406332]
[1729155154684,3.2658,153.14,153.1,3.2665]
[1729155154880,3.2658,153.14,153.11,1.63406348]
[1729155155084,3.2658,153.14,153.1,3.2665]
[1729155155388,10.05,153.13,153.11,1.63406196]
[1729155155587,4.2137,153.19,153.1,10.05]
[1729155155788,13.3154,153.16,153.12,3.266]
[1729155156994,13.3154,153.16,153.1,10.05]
[1729155157293,13.3154,153.16,153.11,4.90035198]
[1729155157487,13.3154,153.16,153.11,3.2663]
[1729155158990,3.2653,153.16,153.12,3.2661]
[1729155159194,13.3153,153.16,153.12,3.2661]
[1729155162998,3.2656,153.15,153.11,3.2663]
[1729155163493,10.05,153.16,153.11,3.2663]
[1729155163696,13.3154,153.16,153.11,3.2663]
[1729155167695,10.05,153.14,153.11,3.2663]
[1729155168891,10.05,153.14,153.09,10.05]
[1729155169095,10.05,153.14,153.12,3.266]
[1729155169301,10.05,153.14,153.09,10.05]
[1729155169500,10.05,153.16,153.13,3.266]
[1729155169801,39.79579816,153.28,153.15,10.05]
[1729155170006,39.79579816,153.28,153.08,11.10504676]
[1729155170007,13.3138,153.24,153.19,13.3146]
[1729155170195,1.01523334,153.23,153.19,16.65143871]
[1729155170393,13.3138,153.24,153.19,16.65143871]
[1729155171200,10.05,153.24,153.19,16.65143871]
[1729155171396,13.3139,153.23,153.19,3.33683871]
[1729155172102,10.05,153.23,153.19,3.2645]
[1729155172292,10.05,153.23,153.19,6.55887968]
[1729155172499,10.05,153.23,153.19,3.2645]
[1729155173203,10.05,153.23,153.19,6.61211492]
[1729155173599,4.6483,153.25,153.2,3.2643]
[1729155173798,1.015044,153.24,153.19,13.39761492]
[1729155174292,1.015044,153.24,153.2,3.2643]
[1729155176002,10.05,153.22,153.19,3.34761492]
[1729155176201,10.05,153.22,153.17,10.05]
[1729155176395,1.3848,153.25,153.17,13.24432312]
[1729155176603,10.05,153.23,153.17,13.24432312]
[1729155177507,13.3139,153.23,153.18,3.2649]
[1729155180111,3.2643,153.21,153.17,16.50932312]
[1729155180301,3.2643,153.21,153.17,3.19432312]
[1729155180302,10.05,153.21,153.17,3.19432312]
[1729155180509,1.3848,153.25,153.2,10.05]
[1729155180709,1.01503571,153.24,153.21,3.2642]
[1729155180909,1.01503571,153.24,153.2,13.36647822]
[1729155181209,14.6983,153.25,153.2,13.36647822]
[1729155181410,1.01497503,153.24,153.21,3.2642]
[1729155182510,1.01497503,153.24,153.2,16.63087822]
[1729155183116,14.32857503,153.24,153.2,6.58087822]
[1729155183316,13.3136,153.24,153.2,6.58087822]
[1729155184322,10.05,153.24,153.21,3.2642]
[1729155185115,13.3137,153.24,153.2,3.31647822]
[1729155185315,13.3137,153.24,153.19,13.3145]
[1729155185919,13.3137,153.24,153.2,3.2645]
[1729155187922,13.3137,153.24,153.19,16.55455308]
[1729155188920,10.05,153.21,153.17,3.2649]
[1729155189121,10.05,153.19,153.13,1.3367]
[1729155189315,10.05,153.2,153.15,10.05]
[1729155189624,10.05,153.2,153.16,3.2652]
[1729155189820,10.05,153.2,153.17,3.30025506]
[1729155190022,13.3145,153.2,153.17,3.30025506]
[1729155194223,10.05,153.2,153.17,3.30025506]
[1729155194527,10.05,153.19,153.14,10.05]
[1729155195024,10.05,153.19,153.13,11.3867]
[1729155195421,3.2651,153.18,153.14,3.2657]
[1729155196420,3.2651,153.18,153.14,13.3157]
[1729155196618,10.05,153.2,153.14,10.05]
[1729155197528,3.2648,153.19,153.15,3.2655]
[1729155198027,3.2649,153.18,153.14,13.3157]
[1729155199633,3.2649,153.18,153.14,3.2657]
[1729155199928,3.2649,153.18,153.14,13.3157]
[1729155201032,10.05,153.19,153.14,13.3157]
[1729155201434,4.243,153.26,153.15,3.2654]
[1729155201633,13.3148,153.19,153.15,3.2654]
[1729155203435,10.05,153.19,153.14,10.05]
[1729155203634,3.2651,153.18,153.14,13.3156]
[1729155204034,4.243,153.26,153.17,10.05]
[1729155204239,11.06521075,153.25,153.19,10.05]
[1729155204431,2.8595,153.26,153.21,10.05]
[1729155204637,1.01500646,153.25,153.21,10.05]
[1729155205130,12.9095,153.26,153.21,16.58287903]
[1729155205131,6.1227,153.26,153.21,16.58287903]
[1729155205531,16.1727,153.26,153.21,16.58287903]
[1729155205734,12.9095,153.26,153.21,16.58287903]
[1729155205935,3.2634,153.25,153.21,16.58287903]
[1729155207440,3.2634,153.25,153.21,13.31877903]
[1729155210637,13.3134,153.25,153.21,13.31877903]
[1729155212840,13.3134,153.25,153.21,3.26877903]
[1729155213038,13.3134,153.25,153.2,3.2643]
[1729155213244,13.3134,153.25,153.2,16.62446676]
[1729155213448,13.3134,153.25,153.2,13.3143]
[1729155213637,3.2636,153.24,153.2,13.3143]
[1729155213844,3.2636,153.24,153.2,16.57939937]
[1729155214241,13.3136,153.24,153.2,16.57939937]
[1729155214848,13.3136,153.24,153.2,6.52939937]
[1729155216447,10.05,153.24,153.2,6.52939937]
[1729155216841,10.05,153.24,153.2,16.57939937]
[1729155217749,10.05,153.24,153.2,6.52939937]
[1729155217946,10.05,153.21,153.18,1.3625]
[1729155218141,10.05,153.21,153.16,10.05]
[1729155218743,13.3143,153.21,153.16,10.05]
[1729155218947,13.3143,153.21,153.16,13.27133829]
[1729155219244,13.3143,153.21,153.18,3.2649]
[1729155219655,13.3145,153.2,153.16,13.27133829]
[1729155219949,13.3145,153.2,153.17,3.265]
[1729155223147,10.05,153.2,153.16,3.22133829]
[1729155223355,3.2651,153.18,153.15,3.2655]
[1729155223553,3.2651,153.18,153.14,11.4392]
[1729155223749,1.4614,153.25,153.14,11.4392]
[1729155224052,11.06515946,153.24,153.19,10.05]
[1729155224252,10.05,153.24,153.19,13.32816238]
[1729155224452,3.2642,153.22,153.19,16.59266238]
[1729155225249,3.2634,153.25,153.22,3.2639]
[1729155225450,11.4454,153.26,153.21,10.05]
[1729155226047,3.2635,153.25,153.21,13.3142]
[1729155226955,10.05,153.24,153.19,3.27816238]
[1729155227154,10.05,153.23,153.18,10.05]
[1729155227654,10.05,153.23,153.18,13.39031274]
[1729155227858,13.314,153.23,153.19,3.2646]
[1729155229353,3.2636,153.25,153.2,13.3143]
[1729155229556,3.2636,153.25,153.2,10.05]
[1729155229765,3.2636,153.25,153.21,10.05]
[1729155229965,14.7087,153.26,153.22,3.2639]
[1729155230152,14.7087,153.26,153.23,3.27848896]
[1729155231561,14.7087,153.26,153.22,3.2639]
[1729155232160,14.7087,153.26,153.23,3.20598925]
[1729155232854,10.05,153.25,153.22,3.2639]
[1729155233463,10.05,153.25,153.23,3.19903998]
[1729155233959,10.05,153.24,153.16,1.6332601]
[1729155234262,10.05,153.24,153.19,10.05]
[1729155234463,10.05,153.24,153.2,3.2644]
[1729155234666,3.2636,153.25,153.19,13.28430551]
[1729155234857,13.3136,153.25,153.19,13.28430551]
[1729155235063,13.3136,153.25,153.21,3.2642]
[1729155236963,4.6586,153.26,153.21,3.2642]
[1729155237162,14.7086,153.26,153.21,3.2642]
[1729155237362,1.3954,153.26,153.2,10.05]
[1729155237564,1.3954,153.26,153.23,3.2638]
[1729155237765,11.4454,153.26,153.22,10.05]
[1729155237955,11.4454,153.26,153.22,13.36288495]
[1729155238162,11.4454,153.26,153.22,16.62678495]
[1729155238466,14.7086,153.26,153.22,16.62678495]
[1729155239366,10.05,153.25,153.22,6.57678495]
[1729155243574,10.05,153.23,153.14,1.3892]
[1729155243762,10.05,153.2,153.15,1.63326195]
[1729155243966,10.05,153.2,153.16,1.63326195]
[1729155244165,1.3821,153.25,153.17,3.265]
[1729155244375,10.05,153.2,153.17,3.265]
[1729155245074,10.05,153.2,153.17,6.55546911]
[1729155247172,13.3145,153.2,153.17,6.55546911]
[1729155247767,10.05,153.18,153.14,1.3892]
[1729155247973,2.724,153.25,153.14,1.3892]
[1729155248175,10.05,153.18,153.14,1.3892]
[1729155248978,13.315,153.18,153.15,3.2655]
[1729155249171,10.05,153.18,153.16,3.19943132]
[1729155249969,3.2651,153.17,153.16,3.19943132]
[1729155250265,3.2651,153.17,153.14,4.6549]
[1729155250467,3.2651,153.17,153.13,11.3867]
[1729155250672,3.2651,153.17,153.14,1.63346376]
[1729155250872,3.2651,153.17,153.13,11.3867]
[1729155251184,3.265,153.18,153.15,3.2655]
[1729155252279,3.2646,153.2,153.17,3.265]
[1729155252582,13.3146,153.2,153.17,6.49611533]
[1729155252882,10.05,153.2,153.17,6.49611533]
[1729155253782,13.3146,153.2,153.17,6.49611533]
[1729155253978,2.724,153.25,153.18,13.3147]
[1729155254188,11.06510154,153.24,153.19,10.05]
[1729155254390,3.2641,153.22,153.19,10.05]
[1729155255588,3.2641,153.22,153.19,13.3146]
[1729155256383,3.2641,153.22,153.19,3.2646]
[1729155256583,10.05,153.22,153.18,10.05]
[1729155256792,13.3144,153.21,153.17,6.49611533]
[1729155256983,13.3144,153.21,153.17,3.265]
[1729155257592,13.3144,153.21,153.17,6.48144466]
[1729155259691,10.05,153.19,153.17,3.265]
[1729155260282,10.05,153.19,153.17,6.45507709]
[1729155261286,10.05,153.19,153.17,3.265]
[1729155261486,10.05,153.19,153.15,10.05]
[1729155261487,13.3148,153.19,153.16,3.2652]
[1729155261689,13.3148,153.19,153.18,3.20281518]
[1729155261894,10.05,153.19,153.18,3.20281518]
[1729155262090,10.05,153.19,153.17,3.2651]
[1729155262393,10.05,153.19,153.17,6.61293354]
[1729155262597,10.05,153.19,153.17,3.2651]
[1729155262993,3.2644,153.21,153.18,3.2649]
[1729155263194,13.3144,153.21,153.15,10.05]
[1729155263693,13.3144,153.21,153.17,3.265]
[1729155263893,10.05,153.2,153.18,3.27924377]
[1729155268795,10.05,153.2,153.18,6.54394377]
[1729155269098,10.05,153.2,153.18,3.2647]
[1729155269496,10.05,153.2,153.18,6.57442065]
[1729155269699,10.05,153.2,153.18,3.2647]
[1729155270298,10.05,153.2,153.18,6.60806333]
[1729155272401,10.05,153.21,153.18,6.60806333]
[1729155278504,3.264,153.23,153.19,13.3145]
[1729155278709,3.264,153.23,153.19,10.05]
[1729155280414,3.264,153.23,153.2,3.2645]
[1729155281915,3.2632,153.26,153.22,3.2639]
[1729155282114,1.01498523,153.25,153.22,3.2639]
[1729155283118,3.2632,153.26,153.22,3.2639]
[1729155284412,13.3132,153.26,153.22,3.2639]
[1729155284916,3.2629,153.28,153.24,3.2635]
[1729155285120,10.05,153.27,153.24,3.2635]
[1729155285517,10.05,153.27,153.21,10.05]
[1729155285717,13.313,153.27,153.23,3.2637]
[1729155287218,10.05,153.26,153.23,3.2637]
[1729155287829,13.3138,153.24,153.2,3.2644]
[1729155288015,10.05,153.23,153.2,3.2644]
[1729155288215,10.05,153.23,153.2,3.33944901]
[1729155288416,10.05,153.23,153.19,3.2645]